bitfinex/quotes_SOLUSD_20250217
["timestamp","ask_amount","ask_price","bid_price","bid_amount"]
[1739784408348,0.063,184.93,184.92,95.41733016]
[1739784410253,0.063,184.93,184.92,85.2854]
[1739784410653,0.063,184.93,184.92,23.7854]
[1739784415579,0.063,184.93,184.91,3.7856]
[1739784416476,0.063,184.93,184.91,13.91753016]
[1739784417151,0.063,184.93,184.92,10.13193016]
[1739784417761,0.063,184.93,184.91,13.91753016]
[1739784421577,0.063,184.93,184.9,10.16193016]
[1739784421753,0.063,184.93,184.9,3.8158]
[1739784422569,0.063,184.93,184.9,13.94773016]
[1739784424680,0.063,184.93,184.92,3.7854]
[1739784426293,0.063,184.93,184.91,3.7856]
[1739784427595,0.063,184.93,184.9,3.8158]
[1739784431675,0.063,184.93,184.9,0.03]
[1739784431877,6.2621,184.93,184.9,0.03]
[1739784432895,1.5195,184.92,184.88,0.03]
[1739784433701,3.7856,184.91,184.88,0.03]
[1739784440385,82.3,184.9,184.88,0.03]
[1739784440900,19.90954853,184.89,184.88,0.03]
[1739784441804,23.69554853,184.89,184.88,0.03]
[1739784442179,10.2837,184.89,184.88,0.03]
[1739784444883,6.4977,184.89,184.88,0.03]
[1739784448993,10.2837,184.89,184.88,0.03]
[1739784450801,6.4977,184.89,184.88,0.03]
[1739784452494,10.2837,184.89,184.88,0.03]
[1739784455393,10.2837,184.89,184.88,0.03]
[1739784460022,20.0,184.87,184.86,0.03]
[1739784460523,33.41184853,184.87,184.86,0.03]
[1739784461016,35.43974629,184.87,184.86,0.03]
[1739784461196,39.22614629,184.87,184.86,0.03]
[1739784464532,125.06614629,184.87,184.86,0.03]
[1739784467335,125.06614629,184.87,184.76,0.03]
[1739784467336,30.0,184.85,184.76,0.03]
[1739784468412,13.41184853,184.84,184.76,0.03]
[1739784470620,17.19904853,184.84,184.76,0.03]
[1739784473040,3.7872,184.84,184.76,0.03]
[1739784478431,13.41184853,184.83,184.76,0.03]
[1739784480145,13.41184853,184.85,184.76,0.03]
[1739784480372,13.41184853,184.83,184.76,0.03]
[1739784481220,17.19864853,184.85,184.76,0.03]
[1739784482520,13.41184853,184.83,184.76,0.03]
[1739784482825,86.087,184.84,184.76,0.03]
[1739784483034,86.087,184.84,184.77,10.13193016]
[1739784483035,82.3,184.84,184.77,10.13193016]
[1739784483328,6.6195,184.86,184.79,10.13193016]
[1739784483540,85.903,184.87,184.77,1.6601]
[1739784483541,85.903,184.87,184.8,10.13193016]
[1739784483842,85.903,184.87,184.77,1.6601]
[1739784483843,85.903,184.87,184.82,10.13193016]
[1739784484418,85.903,184.87,184.83,10.13193016]
[1739784484618,0.063,184.87,184.86,10.13193016]
[1739784485842,0.063,184.87,184.85,10.13193016]
[1739784486043,0.063,184.87,184.84,11.76673016]
[1739784486239,0.063,184.87,184.84,1.6348]
[1739784486541,0.063,184.87,184.84,11.76673016]
[1739784487947,0.063,184.87,184.84,1.6348]
[1739784493433,0.063,184.87,184.84,15.55363016]
[1739784496158,0.063,184.87,184.84,1.6348]
[1739784496456,0.063,184.87,184.83,10.13193016]
[1739784496629,0.063,184.87,184.81,13.91943016]
[1739784497351,0.063,184.87,184.8,15.49593016]
[1739784497547,0.063,184.87,184.8,5.364]
[1739784497751,0.063,184.87,184.8,15.49593016]
[1739784500859,0.063,184.87,184.81,10.13193016]
[1739784501959,0.063,184.87,184.82,3.7874]
[1739784503669,0.063,184.87,184.8,11.73813016]
[1739784503839,0.063,184.87,184.81,3.7876]
[1739784507276,0.063,184.87,184.81,13.91953016]
[1739784507854,0.063,184.87,184.81,3.7876]
[1739784509578,0.063,184.87,184.81,13.91953016]
[1739784510479,0.063,184.87,184.83,3.7872]
[1739784511180,0.063,184.87,184.83,13.91913016]
[1739784511772,0.063,184.87,184.84,10.13193016]
[1739784512370,0.063,184.87,184.85,3.7868]
[1739784513674,0.063,184.87,184.86,20.0]
[1739784514262,0.063,184.87,184.86,23.7866]
[1739784514569,0.063,184.87,184.84,85.287]
[1739784514979,0.063,184.87,184.84,81.5]
[1739784515977,0.063,184.87,184.84,85.2869]
[1739784527380,0.063,184.87,184.84,95.41883016]
[1739784528689,0.063,184.87,184.84,85.2869]
[1739784535584,0.063,184.87,184.84,95.41883016]
[1739784537319,0.063,184.87,184.84,85.2869]
[1739784538724,0.063,184.87,184.84,85.3169]
[1739784544023,0.063,184.87,184.84,95.44883016]
[1739784544514,0.063,184.87,184.86,27.33037869]
[1739784546204,0.063,184.87,184.86,28.93417869]
[1739784547946,0.063,184.87,184.86,110.43417869]
[1739784549226,0.063,184.87,184.86,111.43417869]
[1739784549423,0.063,184.9,184.89,34.41184853]
[1739784549628,0.063,184.9,184.89,127.85467761]
[1739784549930,0.063,184.9,184.89,127.04377869]
[1739784550708,0.063,184.9,184.89,125.04377869]
[1739784551221,0.063,184.9,184.89,128.82977869]
[1739784552429,0.063,184.9,184.89,129.82977869]
[1739784552615,0.063,184.9,184.89,130.82977869]
[1739784554929,0.063,184.9,184.89,129.82977869]
[1739784555129,0.063,184.9,184.89,130.82977869]
[1739784557640,0.063,184.9,184.89,129.82977869]
[1739784557940,0.063,184.9,184.89,130.82977869]
[1739784558130,0.063,184.9,184.89,129.82977869]
[1739784558725,0.063,184.9,184.89,130.82977869]
[1739784559931,0.063,184.9,184.89,129.82977869]
[1739784560107,0.063,184.9,184.89,130.82977869]
[1739784560303,0.063,184.9,184.89,129.82977869]
[1739784560522,0.063,184.9,184.89,130.82977869]
[1739784561934,0.063,184.9,184.89,129.82977869]
[1739784562436,0.063,184.9,184.89,128.82977869]
[1739784563023,0.063,184.9,184.89,129.82977869]
[1739784563226,0.063,184.9,184.89,128.82977869]
[1739784563735,0.063,184.9,184.89,85.286]
[1739784566518,0.063,184.9,184.89,81.5]
[1739784566733,6.3044,184.9,184.87,0.03]
[1739784567541,7.8158,184.9,184.87,0.03]
[1739784570147,11.6017,184.9,184.87,0.03]
[1739784570831,7.8158,184.9,184.87,0.03]
[1739784584271,11.6018,184.9,184.87,0.03]
[1739784584970,20.0,184.88,184.87,0.03]
[1739784585438,26.5315,184.88,184.87,0.03]
[1739784585638,13.41184853,184.87,184.84,0.03]
[1739784586070,15.53556179,184.87,184.84,0.03]
[1739784586668,3.7866,184.86,184.84,0.03]
[1739784587041,28.0634,184.85,184.84,0.03]
[1739784587961,31.8502,184.85,184.84,0.03]
[1739784588266,45.26204853,184.85,184.84,0.03]
[1739784588653,31.8502,184.85,184.84,0.03]
[1739784589041,45.26204853,184.85,184.84,0.03]
[1739784591767,31.8502,184.85,184.84,0.03]
[1739784597075,112.3,184.84,184.82,0.03]
[1739784597862,13.41184853,184.83,184.82,0.03]
[1739784598556,13.41184853,184.8,184.76,0.03]
[1739784598966,136.5,184.81,184.76,0.03]
[1739784599167,3.7878,184.8,184.76,0.03]
[1739784601853,136.5,184.81,184.76,0.03]
[1739784601854,3.7874,184.82,184.76,0.03]
[1739784602059,10.0059,184.83,184.76,0.03]
[1739784606773,13.41184853,184.82,184.76,0.03]
[1739784606959,20.0,184.79,184.76,0.03]
[1739784608070,3.7882,184.78,184.76,0.03]
[1739784608656,20.0,184.79,184.76,0.03]
[1739784608657,23.788,184.79,184.76,0.03]
[1739784608870,3.7876,184.81,184.76,0.03]
[1739784609065,89.6474,184.82,184.76,0.03]
[1739784610486,20.0,184.79,184.76,0.03]
[1739784612297,23.7882,184.79,184.76,0.03]
[1739784614371,3.7882,184.79,184.76,0.03]
[1739784615712,3.7884,184.77,184.76,0.03]
[1739784617600,23.7884,184.77,184.76,0.03]
[1739784619098,30.2316,184.77,184.76,0.03]
[1739784620275,73.64344853,184.77,184.76,0.03]
[1739784620491,73.64344853,184.77,184.71,0.03]
[1739784621007,83.11464853,184.77,184.71,0.03]
[1739784621369,30.2316,184.77,184.71,0.03]
[1739784623304,13.41184853,184.76,184.71,0.03]
[1739784623480,20.0,184.73,184.71,0.03]
[1739784624507,146.7316,184.77,184.71,0.03]
[1739784624799,10.2316,184.77,184.71,0.03]
[1739784624977,20.0,184.75,184.71,0.03]
[1739784626405,23.7889,184.75,184.71,0.03]
[1739784630109,20.0,184.74,184.71,0.03]
[1739784631879,13.41184853,184.76,184.71,0.03]
[1739784632201,85.88,184.77,184.71,0.03]
[1739784633207,89.6684,184.77,184.71,0.03]
[1739784633384,99.1396,184.77,184.71,0.03]
[1739784633699,100.1396,184.77,184.71,0.03]
[1739784634208,20.0,184.74,184.71,0.03]
[1739784634802,3.7893,184.73,184.71,0.03]
[1739784635110,23.7891,184.74,184.71,0.03]
[1739784635993,3.7891,184.74,184.71,0.03]
[1739784636304,85.88,184.77,184.71,0.03]
[1739784636793,0.063,184.78,184.72,10.13193016]
[1739784637178,0.063,184.78,184.73,10.13193016]
[1739784637789,0.063,184.78,184.72,30.13193016]
[1739784638078,0.063,184.78,184.72,33.92123016]
[1739784638411,0.063,184.78,184.71,0.03]
[1739784638794,6.1948,184.77,184.71,0.03]
[1739784638976,13.41184853,184.76,184.71,0.03]
[1739784639182,20.0,184.73,184.71,0.03]
[1739784640217,23.7895,184.72,184.71,0.03]
[1739784642194,37.20134853,184.72,184.71,0.03]
[1739784644212,37.20134853,184.72,184.7,0.063]
[1739784644400,38.20134853,184.72,184.7,0.063]
[1739784645824,15.33613671,184.71,184.7,0.063]
[1739784646200,23.7901,184.69,184.68,0.03]
[1739784646720,175.26503021,184.69,184.57,1.535]
[1739784647018,175.26503021,184.69,184.58,15.86487795]
[1739784647019,15.25052485,184.68,184.58,15.86487795]
[1739784647216,15.25052485,184.68,184.6,15.86487795]
[1739784647415,15.25052485,184.68,184.63,1.5798]
[1739784648031,15.25052485,184.68,184.62,15.86487795]
[1739784648193,15.25052485,184.68,184.6,3.7919]
[1739784648837,19.04082485,184.68,184.6,3.7919]
[1739784649128,13.93685441,184.67,184.6,3.7919]
[1739784650112,13.93685441,184.67,184.59,1.5798]
[1739784650442,3.7907,184.66,184.59,1.5798]
[1739784650735,3.7907,184.66,184.57,0.03]
[1739784651111,3.7907,184.66,184.57,3.8225]
[1739784651413,17.90962299,184.66,184.57,3.8225]
[1739784651601,14.11892299,184.66,184.58,15.86487795]
[1739784652014,14.11892299,184.66,184.59,15.86487795]
[1739784652241,14.11892299,184.66,184.59,19.65687795]
[1739784653937,14.11892299,184.66,184.62,17.38727795]
[1739784654240,14.11892299,184.66,184.63,15.86487795]
[1739784654452,14.11892299,184.66,184.62,1.5224]
[1739784654737,14.11892299,184.66,184.62,5.3139]
[1739784654943,14.11892299,184.66,184.62,1.5224]
[1739784655316,17.90962299,184.66,184.62,1.5224]
[1739784655517,17.90962299,184.66,184.58,5.3246]
[1739784657115,17.90962299,184.66,184.58,1.5324]
[1739784661035,17.90962299,184.66,184.57,0.03]
[1739784661237,20.0,184.62,184.57,0.03]
[1739784661536,20.0,184.61,184.57,0.03]
[1739784662744,23.7918,184.61,184.57,0.03]
[1739784662928,3.7918,184.61,184.57,0.03]
[1739784664047,20.0,184.6,184.57,0.03]
[1739784664419,23.7918,184.61,184.57,0.03]
[1739784670145,3.7918,184.61,184.57,0.03]
[1739784670338,20.0,184.59,184.57,0.03]
[1739784670525,20.0,184.58,184.57,0.03]
[1739784670724,21.0,184.58,184.57,0.03]
[1739784670920,34.41184853,184.58,184.57,0.03]
[1739784671117,174.70414853,184.58,184.45,1.5403]
[1739784671314,13.41184853,184.56,184.45,1.5403]
[1739784671717,11.60619015,184.55,184.46,15.89487795]
[1739784672432,11.60619015,184.55,184.46,0.03]
[1739784672830,15.39919015,184.55,184.47,15.86487795]
[1739784673646,15.39919015,184.55,184.46,15.89487795]
[1739784673848,15.39919015,184.55,184.46,0.03]
[1739784676451,20.0,184.52,184.46,0.03]
[1739784676620,20.0,184.51,184.46,0.03]
[1739784677023,17.06469445,184.54,184.46,0.03]
[1739784677427,10.87809445,184.54,184.46,0.03]
[1739784677632,10.87809445,184.54,184.47,17.36737795]
[1739784677938,10.87809445,184.54,184.5,15.86487795]
[1739784678344,10.87809445,184.54,184.52,15.86487795]
[1739784678540,10.87809445,184.54,184.53,15.86487795]
[1739784678746,10.87809445,184.54,184.52,15.86487795]
[1739784679049,10.87809445,184.54,184.53,15.86487795]
[1739784680329,10.87809445,184.54,184.53,19.65827795]
[1739784681056,10.87809445,184.54,184.53,21.31127795]
[1739784681648,10.87809445,184.54,184.53,34.72312648]
[1739784694680,10.87809445,184.54,184.53,29.02040041]
[1739784699673,10.87809445,184.54,184.53,29.05040041]
[1739784703667,10.87809445,184.54,184.53,27.39740041]
[1739784708175,10.87809445,184.54,184.53,13.98555188]
[1739784708480,10.87809445,184.54,184.53,10.19215188]
[1739784709786,10.87809445,184.54,184.53,27.39740041]
[1739784719090,9.445e-05,184.54,184.53,28.39740041]
[1739784719270,0.063,184.57,184.56,20.0]
[1739784719591,0.063,184.66,184.6,20.0]
[1739784719795,0.063,184.66,184.65,10.16215188]
[1739784720489,0.063,184.66,184.65,13.95305188]
[1739784720993,0.063,184.66,184.65,10.16215188]
[1739784723182,0.063,184.66,184.63,10.16215188]
[1739784723402,0.063,184.66,184.62,10.16215188]
[1739784725002,0.063,184.66,184.63,10.16215188]
[1739784726978,0.063,184.66,184.61,10.16215188]
[1739784729012,0.063,184.66,184.63,10.16215188]
[1739784731810,0.063,184.66,184.65,10.16215188]
[1739784732226,0.063,184.66,184.64,10.16215188]
[1739784732401,0.063,184.66,184.63,10.16215188]
[1739784733023,0.063,184.66,184.64,10.16215188]
[1739784733408,0.063,184.66,184.65,10.16215188]
[1739784733905,0.063,184.66,184.65,23.57400041]
[1739784734526,0.063,184.66,184.65,27.36490041]
[1739784735827,0.063,184.66,184.65,28.17687024]
[1739784736116,0.063,184.72,184.69,20.0]
[1739784736330,0.063,184.72,184.71,10.16215188]
[1739784736530,0.063,184.72,184.71,27.36370041]
[1739784745318,0.063,184.72,184.71,109.86370041]
[1739784745713,0.063,184.72,184.71,96.45185188]
[1739784745912,0.063,184.72,184.71,110.67538351]
[1739784746117,0.063,184.72,184.71,109.86370041]
[1739784746336,11.49754303,184.74,184.73,20.0]
[1739784746535,0.063,184.76,184.73,126.07400041]
[1739784746838,0.063,184.76,184.75,64.22260793]
[1739784747709,0.063,184.76,184.75,65.22260793]
[1739784748538,0.063,184.76,184.75,69.01150793]
[1739784749313,0.063,184.76,184.75,55.5996594]
[1739784750136,0.063,184.76,184.75,150.51150793]
[1739784750337,0.063,184.76,184.75,109.86290041]
[1739784751441,0.063,184.76,184.75,108.86290041]
[1739784753231,0.063,184.76,184.75,10.16215188]
[1739784754735,0.063,184.76,184.74,10.16215188]
[1739784754936,0.063,184.76,184.72,27.36330041]
[1739784755126,0.063,184.76,184.72,23.57400041]
[1739784755326,0.063,184.76,184.72,10.16215188]
[1739784755527,0.063,184.76,184.71,91.66215188]
[1739784756144,0.063,184.76,184.73,10.16215188]
[1739784757854,0.063,184.76,184.73,13.95145188]
[1739784758053,0.063,184.76,184.74,10.16215188]
[1739784758245,0.063,184.76,184.75,10.16215188]
[1739784759251,0.063,184.76,184.75,23.57400041]
[1739784759727,0.063,184.76,184.75,64.22260793]
[1739784759934,0.063,184.76,184.75,68.01150793]
[1739784760526,0.063,184.76,184.75,27.36290041]
[1739784761723,0.063,184.78,184.77,20.0]
[1739784761928,0.063,184.78,184.77,88.01100793]
[1739784769036,0.063,184.78,184.77,88.82251241]
[1739784770269,0.063,184.78,184.77,171.32251241]
[1739784770458,0.063,184.78,184.77,170.51100793]
[1739784770767,0.063,184.78,184.77,169.51100793]
[1739784774868,0.063,184.78,184.77,170.51100793]
[1739784777938,0.063,184.8,184.77,170.51100793]
[1739784777939,0.063,184.8,184.79,1.0]
[1739784778139,0.063,184.85,184.83,20.0]
[1739784778366,0.063,184.85,184.84,23.57400041]
[1739784778671,0.063,184.85,184.84,24.3851905]
[1739784779946,0.063,184.85,184.84,28.1721905]
[1739784780451,0.063,184.85,184.84,27.36100041]
[1739784781054,0.063,184.85,184.84,23.57400041]
[1739784782061,0.063,184.85,184.84,10.16215188]
[1739784782271,0.063,184.85,184.83,10.16215188]
[1739784782567,0.063,184.85,184.84,10.16215188]
[1739784784571,0.063,184.85,184.84,27.36100041]
[1739784785441,0.063,184.85,184.84,10.16215188]
[1739784785669,0.063,184.85,184.82,111.66215188]
[1739784785885,0.063,184.85,184.82,91.66215188]
[1739784786871,0.063,184.85,184.83,10.16215188]
[1739784787162,0.063,184.85,184.84,10.16215188]
[1739784788166,0.063,184.85,184.84,27.36100041]
[1739784789275,0.063,184.85,184.84,108.86100041]
[1739784792352,0.063,184.85,184.84,95.44915188]
[1739784792681,0.063,184.85,184.84,91.66215188]
[1739784793046,0.063,184.85,184.84,95.44915188]
[1739784793845,0.063,184.85,184.84,91.66215188]
[1739784794050,0.063,184.85,184.84,108.86100041]
[1739784794976,0.063,184.85,184.84,91.66215188]
[1739784796880,0.063,184.85,184.84,81.5]
[1739784800582,0.063,184.85,184.8,0.03]
[1739784804777,3.7872,184.83,184.8,0.03]
[1739784804978,1.6483,184.81,184.8,0.03]
[1739784805497,2.6483,184.81,184.8,0.03]
[1739784805720,4.80022498,184.81,184.8,0.03]
[1739784806269,20.0,184.79,184.76,0.03]
[1739784806595,21.0,184.79,184.76,0.03]
[1739784806801,23.7882,184.78,184.76,0.03]
[1739784807509,6.4685,184.77,184.76,0.03]
[1739784809098,10.2569,184.77,184.76,0.03]
[1739784809685,11.2569,184.77,184.76,0.03]
[1739784809885,12.8021,184.77,184.76,0.03]
[1739784818246,11.8021,184.77,184.76,0.03]
[1739784819114,3.7883,184.78,184.76,0.03]
[1739784819284,3.7881,184.79,184.76,0.03]
[1739784819486,0.063,184.8,184.76,0.03]
[1739784819714,0.063,184.8,184.77,10.16215188]
[1739784820215,0.063,184.8,184.79,27.36200041]
[1739784822412,0.063,184.8,184.79,23.57400041]
[1739784822620,0.063,184.8,184.78,15.83548848]
[1739784822912,0.063,184.8,184.76,15.86548848]
[1739784823287,0.063,184.8,184.77,15.83548848]
[1739784824622,0.063,184.8,184.76,15.86548848]
[1739784825525,0.063,184.8,184.76,0.03]
[1739784828723,20.0,184.79,184.76,0.03]
[1739784829805,3.7882,184.78,184.76,0.03]
[1739784830008,0.063,184.8,184.76,0.03]
[1739784830009,20.063,184.8,184.76,0.03]
[1739784830232,20.0,184.79,184.76,0.03]
[1739784831906,3.8508,184.8,184.76,0.03]
[1739784832133,20.0,184.79,184.76,0.03]
[1739784832822,20.063,184.8,184.76,0.03]
[1739784835607,0.063,184.8,184.76,0.03]
[1739784836933,0.063,184.8,184.76,15.86548848]
[1739784837233,0.063,184.8,184.76,0.03]
[1739784841635,0.063,184.8,184.76,29.27733701]
[1739784842044,0.063,184.8,184.76,110.77733701]
[1739784842644,0.063,184.8,184.76,91.66788797]
[1739784842811,0.063,184.8,184.76,81.53]
[1739784844841,0.063,184.8,184.76,95.45648797]
[1739784845222,0.063,184.8,184.79,10.13788797]
[1739784845424,0.063,184.8,184.79,23.5497365]
[1739784846546,0.063,184.8,184.79,27.3377365]
[1739784846720,0.063,184.8,184.79,108.8377365]
[1739784858641,0.063,184.8,184.79,98.69984853]
[1739784858845,0.063,184.8,184.79,108.8377365]
[1739784859230,0.063,184.8,184.79,105.0497365]
[1739784859837,0.063,184.8,184.79,108.8377365]
[1739784864129,23.7255,184.87,184.8,17.19964853]
[1739784864326,23.7255,184.87,184.8,98.69964853]
[1739784864546,23.7255,184.87,184.81,10.13788797]
[1739784865331,19.939,184.87,184.81,10.13788797]
[1739784867032,23.7255,184.87,184.81,10.13788797]
[1739784867366,23.7255,184.87,184.8,81.5]
[1739784869060,23.7255,184.87,184.8,95.42568797]
[1739784869966,23.7862,184.88,184.81,10.13788797]
[1739784870562,20.0,184.88,184.82,10.13788797]
[1739784870867,0.063,184.9,184.84,10.13788797]
[1739784871163,0.063,184.9,184.86,10.13788797]
[1739784872261,0.063,184.9,184.84,94.91184853]
[1739784872262,0.063,184.9,184.89,10.13788797]
[1739784875663,0.063,184.9,184.89,27.3357365]
[1739784879679,0.063,184.9,184.89,28.14670992]
[1739784880173,0.063,184.9,184.89,109.64670992]
[1739784880358,0.063,184.9,184.89,108.8357365]
[1739784885491,0.063,184.9,184.89,81.5]
[1739784887196,0.063,184.9,184.87,81.5]
[1739784887378,0.063,184.9,184.85,10.13788797]
[1739784887690,0.063,184.9,184.83,95.45508797]
[1739784887858,0.063,184.9,184.84,23.5497365]
[1739784888584,3.8488,184.9,184.84,23.5497365]
[1739784889089,0.063,184.9,184.85,10.13788797]
[1739784889884,0.063,184.9,184.87,0.03]
[1739784892494,20.063,184.9,184.87,0.03]
[1739784894092,5.376,184.89,184.87,0.03]
[1739784894664,6.2368,184.88,184.87,0.03]
[1739784896265,10.023,184.88,184.87,0.03]
[1739784897587,20.0,184.85,184.83,0.03]
[1739784899095,3.787,184.84,184.83,0.03]
[1739784899264,20.0,184.85,184.83,0.03]
[1739784899591,23.7869,184.85,184.83,0.03]
[1739784900600,20.0,184.84,184.83,0.03]
[1739784901504,23.787,184.84,184.83,0.03]
[1739784901990,3.787,184.84,184.83,0.03]
[1739784902890,23.7868,184.85,184.83,0.03]
[1739784903788,20.0,184.85,184.83,0.03]
[1739784903997,3.7866,184.86,184.83,0.03]
[1739784904791,10.0232,184.88,184.83,0.03]
[1739784908774,20.0,184.86,184.83,0.03]
[1739784908975,0.063,184.9,184.84,10.13788797]
[1739784908976,3.849,184.9,184.84,10.13788797]
[1739784909302,0.063,184.9,184.84,91.63788797]
[1739784909693,23.8488,184.9,184.84,91.63788797]
[1739784910002,23.8488,184.9,184.84,81.5]
[1739784912296,34.3133,184.9,184.83,0.03]
[1739784922324,20.0,184.87,184.83,0.03]
[1739784924310,23.7866,184.86,184.83,0.03]
[1739784924620,20.0,184.85,184.83,0.03]
[1739784925401,23.787,184.85,184.83,0.03]
[1739784925704,20.0,184.85,184.83,0.03]
[1739784926211,3.7864,184.87,184.83,0.03]
[1739784927412,20.0,184.85,184.83,0.03]
[1739784928316,23.7868,184.86,184.83,0.03]
[1739784932909,20.0,184.86,184.83,0.03]
[1739784933942,23.7868,184.86,184.83,0.03]
[1739784940502,0.063,184.87,184.83,10.16788797]
[1739784940903,0.063,184.87,184.83,0.03]
[1739784944721,1.0,184.8,184.79,0.03]
[1739784944924,1.0,184.76,184.68,0.03]
[1739784945130,20.0,184.74,184.68,0.03]
[1739784945444,20.0,184.72,184.68,0.03]
[1739784946017,20.0,184.72,184.7,50.4569653]
[1739784946223,3.7897,184.71,184.7,50.4569653]
[1739784947112,23.7897,184.71,184.7,50.4569653]
[1739784949046,20.0,184.7,184.68,0.03]
[1739784949245,23.7901,184.69,184.68,0.03]
[1739784949925,3.7901,184.69,184.68,0.03]
[1739784950128,3.7891,184.74,184.68,0.03]
[1739784950552,20.0,184.71,184.68,0.03]
[1739784951231,3.7899,184.7,184.68,0.03]
[1739784952050,20.0,184.71,184.68,0.03]
[1739784952455,23.7898,184.71,184.68,0.03]
[1739784957656,23.7898,184.71,184.68,0.03]
[1739784963038,3.7895,184.73,184.68,0.03]
[1739784963852,23.7895,184.73,184.68,0.03]
[1739784966370,33.2627,184.73,184.68,0.03]
[1739784968876,34.8605,184.73,184.68,0.03]
[1739784970674,33.2627,184.73,184.68,0.03]
[1739784974168,34.2627,184.73,184.68,0.03]
[1739784974659,134.55470957,184.73,184.68,0.03]
[1739784975277,102.55470957,184.73,184.68,0.03]
[1739784975778,3.7895,184.73,184.68,0.03]
[1739784976379,20.0,184.72,184.68,0.03]
[1739784976971,3.7895,184.73,184.68,0.03]
[1739784977282,23.7895,184.73,184.68,0.03]
[1739784977463,20.0,184.73,184.68,81.53]
[1739784982753,3.7893,184.73,184.68,81.53]
[1739784984177,0.063,184.74,184.69,13.41184853]
[1739784985380,20.063,184.74,184.69,13.41184853]
[1739784985678,0.063,184.74,184.69,94.91184853]
[1739784987560,20.063,184.74,184.69,81.5]
[1739784989067,3.7893,184.73,184.69,81.5]
[1739784989268,3.7893,184.73,184.68,0.03]
[1739784989581,20.0,184.7,184.68,0.03]
[1739784991488,3.7901,184.69,184.68,0.03]
[1739784997691,3.7901,184.69,184.64,0.03]
[1739784997878,3.7909,184.65,184.64,0.03]
[1739784998080,23.7909,184.65,184.64,0.03]
[1739785004900,3.7909,184.65,184.64,0.03]
[1739785007093,3.7899,184.7,184.64,0.03]
[1739785007610,20.0,184.68,184.64,0.03]
[1739785008316,23.7903,184.68,184.64,0.03]
[1739785009017,20.0,184.68,184.64,0.03]
[1739785009718,3.7895,184.72,184.64,0.03]
[1739785009902,3.7895,184.72,184.64,23.5797365]
[1739785010417,20.0,184.72,184.64,23.5797365]
[1739785010719,4.08,184.71,184.64,23.5797365]
[1739785011328,4.08,184.71,184.65,10.13788797]
[1739785011508,3.8521,184.74,184.65,10.13788797]
[1739785012110,20.0,184.72,184.66,23.5497365]
[1739785012320,3.8521,184.74,184.67,11.64688797]
[1739785012522,3.8521,184.74,184.68,23.5497365]
[1739785012523,0.063,184.74,184.68,23.5497365]
[1739785012833,0.063,184.74,184.68,13.41184853]
[1739785013209,0.063,184.74,184.68,23.5497365]
[1739785013401,0.063,184.74,184.71,10.13788797]
[1739785013604,0.063,184.74,184.72,10.13788797]
[1739785013807,0.063,184.74,184.73,23.5497365]
[1739785014213,0.063,184.74,184.73,13.41184853]
[1739785014930,0.063,184.74,184.68,3.7901]
[1739785015117,0.063,184.74,184.7,10.13788797]